﻿DEPARTMENT FAMILY,ENTITY,Date,Expense Type,Expense Area,Supplier,Transaction number,Amount,Description
DEPARTMENT OF HEALTH,BLACKPOOL TEACHING HOSPITALS NHS FT ,Sep-21,Pharmacy Drugs Inventory ,Pharmacy Drugs Inventory ,Aah Hospital Service,40309599C,"41,422.68",Pharmacy Drugs Inventory 
DEPARTMENT OF HEALTH,BLACKPOOL TEACHING HOSPITALS NHS FT ,Sep-21,Facilities ,Hard FM ,Atlas BFW Management Ltd,1710000520,"5,907,710.28",Facilities Management Contract 
DEPARTMENT OF HEALTH,BLACKPOOL TEACHING HOSPITALS NHS FT ,Sep-21,Contractual Clinical Services,Contractual Clinical Services,Atlas Diagnostics Limited,ATL-BVH-0421,"27,529.95",Ultrasound
DEPARTMENT OF HEALTH,BLACKPOOL TEACHING HOSPITALS NHS FT ,Sep-21,Pharmacy Drugs Inventory ,Pharmacy Drugs Inventory ,Baxter Healthcare Ltd,21203580,"100,613.26",Pharmacy Drugs Inventory 
DEPARTMENT OF HEALTH,BLACKPOOL TEACHING HOSPITALS NHS FT ,Sep-21,Pharmacy Drugs Inventory ,Pharmacy Drugs Inventory ,Baxter Healthcare Ltd,21217968,"81,700.98",Pharmacy Drugs Inventory 
DEPARTMENT OF HEALTH,BLACKPOOL TEACHING HOSPITALS NHS FT ,Sep-21,Pharmacy Drugs Inventory ,Pharmacy Drugs Inventory ,Baxter Healthcare Ltd,21219892,"92,341.90",Pharmacy Drugs Inventory 
DEPARTMENT OF HEALTH,BLACKPOOL TEACHING HOSPITALS NHS FT ,Sep-21,Pharmacy Drugs Inventory ,Pharmacy Drugs Inventory ,Baxter Healthcare Ltd,21221377,"29,609.88",Pharmacy Drugs Inventory 
DEPARTMENT OF HEALTH,BLACKPOOL TEACHING HOSPITALS NHS FT ,Sep-21,Pharmacy Drugs Inventory ,Pharmacy Drugs Inventory ,Baxter Healthcare Ltd,21233279,"83,021.08",Pharmacy Drugs Inventory 
DEPARTMENT OF HEALTH,BLACKPOOL TEACHING HOSPITALS NHS FT ,Sep-21,Pharmacy Drugs Inventory ,Pharmacy Drugs Inventory ,Baxter Healthcare Ltd,21233280,"33,488.64",Pharmacy Drugs Inventory 
DEPARTMENT OF HEALTH,BLACKPOOL TEACHING HOSPITALS NHS FT ,Sep-21,Pharmacy Drugs Inventory ,Pharmacy Drugs Inventory ,Bayer Plc,824C367208,"100,370.16",Pharmacy Drugs Inventory 
DEPARTMENT OF HEALTH,BLACKPOOL TEACHING HOSPITALS NHS FT ,Sep-21,Pharmacy Drugs Inventory ,Pharmacy Drugs Inventory ,Bayer Plc,824C368109,"29,654.82",Pharmacy Drugs Inventory 
DEPARTMENT OF HEALTH,BLACKPOOL TEACHING HOSPITALS NHS FT ,Sep-21,Pharmacy Drugs Inventory ,Pharmacy Drugs Inventory ,Bayer Plc,824C369473,"54,747.36",Pharmacy Drugs Inventory 
DEPARTMENT OF HEALTH,BLACKPOOL TEACHING HOSPITALS NHS FT ,Sep-21,Pharmacy Drugs Inventory ,Pharmacy Drugs Inventory ,Bayer Plc,824C371501,"59,309.64",Pharmacy Drugs Inventory 
DEPARTMENT OF HEALTH,BLACKPOOL TEACHING HOSPITALS NHS FT ,Sep-21,Pharmacy Drugs Inventory ,Pharmacy Drugs Inventory ,Bayer Plc,824C372540,"100,370.16",Pharmacy Drugs Inventory 
DEPARTMENT OF HEALTH,BLACKPOOL TEACHING HOSPITALS NHS FT ,Sep-21,Pharmacy Drugs Inventory ,Pharmacy Drugs Inventory ,Bristol Myers Squibb Pharmaceuticals Ltd,100670015,"26,319.55",Pharmacy Drugs Inventory 
DEPARTMENT OF HEALTH,BLACKPOOL TEACHING HOSPITALS NHS FT ,Sep-21,Corporate,Corporate,Browne Jacobson Llp,IN-000078378,"54,056.70",Legal Fees
DEPARTMENT OF HEALTH,BLACKPOOL TEACHING HOSPITALS NHS FT ,Sep-21,Facilities ,Ict Telecommunications,Bt Global Services,790331640,"29,433.79",Telephone Rental and Call Charges
DEPARTMENT OF HEALTH,BLACKPOOL TEACHING HOSPITALS NHS FT ,Sep-21,Facilities ,Ict Telecommunications,Bt Telephone Payment Centre,VP860522701501,"32,781.25",Telephone Rental and Call Charges
DEPARTMENT OF HEALTH,BLACKPOOL TEACHING HOSPITALS NHS FT ,Sep-21,Facilities ,Ict Maintenance Services,Canon (Uk) Ltd,402307480,"28,638.78",Ict Managed Print
DEPARTMENT OF HEALTH,BLACKPOOL TEACHING HOSPITALS NHS FT ,Sep-21,Facilities ,Ict Maintenance Services,Canon (Uk) Ltd,402307571,"26,971.38",Ict Managed Print
DEPARTMENT OF HEALTH,BLACKPOOL TEACHING HOSPITALS NHS FT ,Sep-21,Facilities ,Ict Maintenance Services,Canon (Uk) Ltd,770846519,"29,322.53",Ict Managed Print
DEPARTMENT OF HEALTH,BLACKPOOL TEACHING HOSPITALS NHS FT ,Sep-21,Corporate,Corporate ,CHS Healthcare,INV000015,"46,560.00",External Consultancy Fees
DEPARTMENT OF HEALTH,BLACKPOOL TEACHING HOSPITALS NHS FT ,Sep-21,Corporate,Corporate ,CPC Project Services LLP,21521,"32,760.00",External Consultancy Fees
DEPARTMENT OF HEALTH,BLACKPOOL TEACHING HOSPITALS NHS FT ,Sep-21,Corporate,Corporate ,CPC Project Services LLP,21668,"35,568.00",External Consultancy Fees
DEPARTMENT OF HEALTH,BLACKPOOL TEACHING HOSPITALS NHS FT ,Sep-21,Capital Purchases ,Capital Purchases ,D & G Builders & Joiners Ltd,53079,"173,967.70",Capital Purchases 
DEPARTMENT OF HEALTH,BLACKPOOL TEACHING HOSPITALS NHS FT ,Sep-21,Contractual Clinical Services,Contractual Clinical Services,Elective Services Ltd,101931,"29,989.20",742200; Insourcing endoscopy service |
DEPARTMENT OF HEALTH,BLACKPOOL TEACHING HOSPITALS NHS FT ,Sep-21,Contractual Clinical Services,Contractual Clinical Services,Elective Services Ltd,101938,"29,989.20",742200; Insourcing endoscopy service |
DEPARTMENT OF HEALTH,BLACKPOOL TEACHING HOSPITALS NHS FT ,Sep-21,Facilities ,Soft FM ,Express Launderers,4509,"81,600.00",Laundry Services 
DEPARTMENT OF HEALTH,BLACKPOOL TEACHING HOSPITALS NHS FT ,Sep-21,Corporate,Corporate,Henry Schein Medical,M000001,"304,401.00",Med Surgical Eqpt General
DEPARTMENT OF HEALTH,BLACKPOOL TEACHING HOSPITALS NHS FT ,Sep-21,Corporate,Corporate,Henry Schein Medical,RI65689628,"30,096.53",Med Surgical Eqpt General
DEPARTMENT OF HEALTH,BLACKPOOL TEACHING HOSPITALS NHS FT ,Sep-21,Families and Integrated Care ,Midwifery,Huntleigh Healthcare Ltd,I6236869,"41,141.16",Med Surgical Eqpt General
DEPARTMENT OF HEALTH,BLACKPOOL TEACHING HOSPITALS NHS FT ,Sep-21,Facilities ,Digital Identity,Insight Direct (Uk) Ltd,5425279,"28,658.17",Computer Maintenance
DEPARTMENT OF HEALTH,BLACKPOOL TEACHING HOSPITALS NHS FT ,Sep-21,Capital Purchases ,Capital Purchases ,Integrated Health Projects Joint Venture,21090001,"340,789.58",Capital Purchases 
DEPARTMENT OF HEALTH,BLACKPOOL TEACHING HOSPITALS NHS FT ,Sep-21,Corporate,Ict Maintenance Services,Integrated Medical Solutions Ltd,SIN602687,"67,294.01",Computer Maintenance
DEPARTMENT OF HEALTH,BLACKPOOL TEACHING HOSPITALS NHS FT ,Sep-21,Capital Purchases ,Capital Purchases ,Integrated Medical Solutions Ltd,SIN602686,"29,337.60",Capital Purchases 
DEPARTMENT OF HEALTH,BLACKPOOL TEACHING HOSPITALS NHS FT ,Sep-21,Facilities ,Digital Identity,Intersystems Corporation,2108-002-000900,"139,679.42",Computer Maintenance
DEPARTMENT OF HEALTH,BLACKPOOL TEACHING HOSPITALS NHS FT ,Sep-21,Facilities ,Digital Identity,Intersystems Corporation,2108-002-000901,"95,742.30",Computer Maintenance
DEPARTMENT OF HEALTH,BLACKPOOL TEACHING HOSPITALS NHS FT ,Sep-21,Pharmacy Drugs Inventory ,Pharmacy Drugs Inventory ,Janssen-Cilag Ltd,930778487,"26,959.20",Pharmacy Drugs Inventory 
DEPARTMENT OF HEALTH,BLACKPOOL TEACHING HOSPITALS NHS FT ,Sep-21,Pharmacy Drugs Inventory ,Pharmacy Drugs Inventory ,Janssen-Cilag Ltd,930783870,"26,956.80",Pharmacy Drugs Inventory 
DEPARTMENT OF HEALTH,BLACKPOOL TEACHING HOSPITALS NHS FT ,Sep-21,Contractual Clinical Services,Contractual Clinical Services,Lancashire Teaching Hospitals NHS Foundation Trust,15351283,"26,855.96",Laboratory External Tests
DEPARTMENT OF HEALTH,BLACKPOOL TEACHING HOSPITALS NHS FT ,Sep-21,Contractual Clinical Services,Contractual Clinical Services,Lancashire Teaching Hospitals NHS Foundation Trust,15351176,"49,295.53",Medical Staff - Oncology
DEPARTMENT OF HEALTH,BLACKPOOL TEACHING HOSPITALS NHS FT ,Sep-21,Pharmacy Drugs Inventory ,Pharmacy Drugs Inventory ,Lancashire Teaching Hospitals NHS Foundation Trust,15351364,"27,069.02",Pharmacy Drugs Inventory 
DEPARTMENT OF HEALTH,BLACKPOOL TEACHING HOSPITALS NHS FT ,Sep-21,Pharmacy Drugs Inventory ,Pharmacy Drugs Inventory ,Lloyds Pharmacy Ltd,102932,"915,360.77",Pharmacy Drugs Inventory 
DEPARTMENT OF HEALTH,BLACKPOOL TEACHING HOSPITALS NHS FT ,Sep-21,Families and Integrated Care ,High Dependency,Medstrom Ltd,112383,"34,852.42",Med Surgical Eqpt Hire
DEPARTMENT OF HEALTH,BLACKPOOL TEACHING HOSPITALS NHS FT ,Sep-21,Families and Integrated Care ,High Dependency,Medstrom Ltd,113548,"35,352.86",Med Surgical Eqpt Hire
DEPARTMENT OF HEALTH,BLACKPOOL TEACHING HOSPITALS NHS FT ,Sep-21,Capital Purchases ,Capital Purchases ,Mersey Design Group Ltd,288-22-01,"32,500.80",Capital Purchases 
DEPARTMENT OF HEALTH,BLACKPOOL TEACHING HOSPITALS NHS FT ,Sep-21,Contractual Clinical Services,Contractual Clinical Services,NHS Blood And Transplant,897929,"171,382.41",Blood Products
DEPARTMENT OF HEALTH,BLACKPOOL TEACHING HOSPITALS NHS FT ,Sep-21,Contractual Clinical Services,Contractual Clinical Services,NHS Blood And Transplant,899163,"62,569.70",Blood Products
DEPARTMENT OF HEALTH,BLACKPOOL TEACHING HOSPITALS NHS FT ,Sep-21,Contractual Clinical Services,Contractual Clinical Services,NHS Blood And Transplant,899396,"171,382.41",Blood Products
DEPARTMENT OF HEALTH,BLACKPOOL TEACHING HOSPITALS NHS FT ,Sep-21,Corporate,Management & Admin Finance,NHS Midlands and Lancashire CSU,7312320392,"49,160.00",Project Costs 
DEPARTMENT OF HEALTH,BLACKPOOL TEACHING HOSPITALS NHS FT ,Sep-21,Multi-Divisional charge ,Multi-Divisional charge ,NHS Supply Chain Co-ordination Limited,1122102039,"121,695.17",NHS Supply Chain Catalogue items
DEPARTMENT OF HEALTH,BLACKPOOL TEACHING HOSPITALS NHS FT ,Sep-21,Multi-Divisional charge ,Multi-Divisional charge ,NHS Supply Chain Co-ordination Limited,1122104541,"194,053.61",NHS Supply Chain Catalogue items
DEPARTMENT OF HEALTH,BLACKPOOL TEACHING HOSPITALS NHS FT ,Sep-21,Multi-Divisional charge ,Multi-Divisional charge ,NHS Supply Chain Co-ordination Limited,1122111760,"379,291.36",NHS Supply Chain Catalogue items
DEPARTMENT OF HEALTH,BLACKPOOL TEACHING HOSPITALS NHS FT ,Sep-21,Multi-Divisional charge ,Multi-Divisional charge ,NHS Supply Chain Co-ordination Limited,1122114864,"282,957.65",NHS Supply Chain Catalogue items
DEPARTMENT OF HEALTH,BLACKPOOL TEACHING HOSPITALS NHS FT ,Sep-21,Pharmacy Drugs Inventory ,Pharmacy Drugs Inventory ,Novartis Pharmaceuticals Uk Ltd,92489537,"61,437.60",Pharmacy Drugs Inventory 
DEPARTMENT OF HEALTH,BLACKPOOL TEACHING HOSPITALS NHS FT ,Sep-21,Pharmacy Drugs Inventory ,Pharmacy Drugs Inventory ,Novartis Pharmaceuticals Uk Ltd,92502315,"32,054.40",Pharmacy Drugs Inventory 
DEPARTMENT OF HEALTH,BLACKPOOL TEACHING HOSPITALS NHS FT ,Sep-21,Pharmacy Drugs Inventory ,Pharmacy Drugs Inventory ,Novartis Vaccines And Diagnostics Ltd,9160090730,"39,720.00",Pharmacy Drugs Inventory 
DEPARTMENT OF HEALTH,BLACKPOOL TEACHING HOSPITALS NHS FT ,Sep-21,Pharmacy Drugs Inventory ,Pharmacy Drugs Inventory ,Octapharma Ltd,5208036373,"30,198.72",Pharmacy Drugs Inventory 
DEPARTMENT OF HEALTH,BLACKPOOL TEACHING HOSPITALS NHS FT ,Sep-21,Contractual Clinical Services,Contractual Clinical Services,Radiology Management Solutions Ltd,INV-746,"32,602.25",MRI
DEPARTMENT OF HEALTH,BLACKPOOL TEACHING HOSPITALS NHS FT ,Sep-21,Contractual Clinical Services,Contractual Clinical Services,Radiology Management Solutions Ltd,INV-772,"35,245.68",MRI
DEPARTMENT OF HEALTH,BLACKPOOL TEACHING HOSPITALS NHS FT ,Sep-21,Multi-Divisional charge ,Multi-Divisional charge ,Retinue Solutions Ltd,5880,"295,993.21",Agency Nursing 
DEPARTMENT OF HEALTH,BLACKPOOL TEACHING HOSPITALS NHS FT ,Sep-21,Multi-Divisional charge ,Multi-Divisional charge ,Retinue Solutions Ltd,5979,"241,537.80",Agency Nursing 
DEPARTMENT OF HEALTH,BLACKPOOL TEACHING HOSPITALS NHS FT ,Sep-21,Multi-Divisional charge ,Multi-Divisional charge ,Retinue Solutions Ltd,5980,"32,297.23",Agency Nursing 
DEPARTMENT OF HEALTH,BLACKPOOL TEACHING HOSPITALS NHS FT ,Sep-21,Multi-Divisional charge ,Multi-Divisional charge ,Retinue Solutions Ltd,6014,"239,238.17",Agency Nursing 
DEPARTMENT OF HEALTH,BLACKPOOL TEACHING HOSPITALS NHS FT ,Sep-21,Multi-Divisional charge ,Multi-Divisional charge ,Retinue Solutions Ltd,6016,"28,763.60",Agency Nursing 
DEPARTMENT OF HEALTH,BLACKPOOL TEACHING HOSPITALS NHS FT ,Sep-21,Multi-Divisional charge ,Multi-Divisional charge ,Retinue Solutions Ltd,6047,"227,985.91",Agency Nursing 
DEPARTMENT OF HEALTH,BLACKPOOL TEACHING HOSPITALS NHS FT ,Sep-21,Multi-Divisional charge ,Multi-Divisional charge ,Retinue Solutions Ltd,6048,"36,730.24",Agency Nursing 
DEPARTMENT OF HEALTH,BLACKPOOL TEACHING HOSPITALS NHS FT ,Sep-21,Pharmacy Drugs Inventory ,Pharmacy Drugs Inventory ,Roche Products Ltd,1322205754,"28,386.79",Pharmacy Drugs Inventory 
DEPARTMENT OF HEALTH,BLACKPOOL TEACHING HOSPITALS NHS FT ,Sep-21,Contractual Clinical Services,Contractual Clinical Services,Siemens Financial Services Ltd,220/21/0025795,"31,225.95",Centralised Decontamination Unit
DEPARTMENT OF HEALTH,BLACKPOOL TEACHING HOSPITALS NHS FT ,Sep-21,Contractual Clinical Services,Contractual Clinical Services,Siemens Healthcare Diagnostics Ltd,114226612,"84,350.35",Laboratory Reagents
DEPARTMENT OF HEALTH,BLACKPOOL TEACHING HOSPITALS NHS FT ,Sep-21,Facilities ,Digital Identity,Sitekit Applications Ltd,1193,"77,400.00",Computer Maintenance
DEPARTMENT OF HEALTH,BLACKPOOL TEACHING HOSPITALS NHS FT ,Sep-21,Facilities ,Digital Identity,Sitekit Applications Ltd,1197,"77,400.00",Computer Maintenance
DEPARTMENT OF HEALTH,BLACKPOOL TEACHING HOSPITALS NHS FT ,Sep-21,Capital Purchases ,Capital Purchases ,Smart Co Consulting Ltd,4073,"44,226.00",Capital Purchases 
DEPARTMENT OF HEALTH,BLACKPOOL TEACHING HOSPITALS NHS FT ,Sep-21,Corporate,Computer Maintenance,Softcat Plc,INV03070484,"37,237.20",Computer Maintenance
DEPARTMENT OF HEALTH,BLACKPOOL TEACHING HOSPITALS NHS FT ,Sep-21,Contractual Clinical Services,Contractual Clinical Services,Spire Healthcare,RXLFYCADJ212201M3,"161,320.83",Healthcare From Independent Sector
DEPARTMENT OF HEALTH,BLACKPOOL TEACHING HOSPITALS NHS FT ,Sep-21,Contractual Clinical Services,Contractual Clinical Services,Spire Healthcare,RXLFYCICF2122M02,"234,095.24",Healthcare From Independent Sector
DEPARTMENT OF HEALTH,BLACKPOOL TEACHING HOSPITALS NHS FT ,Sep-21,Contractual Clinical Services,Contractual Clinical Services,Spire Healthcare,RXLFYCICF2122M03,"221,400.85",Healthcare From Independent Sector
DEPARTMENT OF HEALTH,BLACKPOOL TEACHING HOSPITALS NHS FT ,Sep-21,Multi-Divisional charge ,Multi-Divisional charge ,St Helens and Knowsley Hospital Services NHS Trust,16807821,"113,578.46",Inter NHS Medical staff recharges
DEPARTMENT OF HEALTH,BLACKPOOL TEACHING HOSPITALS NHS FT ,Sep-21,Multi-Divisional charge ,Multi-Divisional charge ,St Helens and Knowsley Hospital Services NHS Trust,16808122,"720,000.00",Inter NHS Medical staff recharges
DEPARTMENT OF HEALTH,BLACKPOOL TEACHING HOSPITALS NHS FT ,Sep-21,Capital Purchases ,Capital Purchases ,Strata Health Solutions Ltd,582,"52,508.70",Capital Purchases 
DEPARTMENT OF HEALTH,BLACKPOOL TEACHING HOSPITALS NHS FT ,Sep-21,Corporate,Corporate ,The Value Circle,1180,"43,155.00",External Consultancy Fees
DEPARTMENT OF HEALTH,BLACKPOOL TEACHING HOSPITALS NHS FT ,Sep-21,Corporate,Ict Maintenance Services,Vodafone Ltd,PM05797,"25,115.76",Computer Hardware Purchases
DEPARTMENT OF HEALTH,BLACKPOOL TEACHING HOSPITALS NHS FT ,Sep-21,Contractual Clinical Services,Contractual Clinical Services,Wernick Hire Ltd,211185938,"25,922.40",Rent
